bitfinex-derivatives/quotes_ETHF0:USTF0_20250403
["timestamp","ask_amount","ask_price","bid_price","bid_amount"]
[1743709155465,1.12004,1786.4,1786.3,1.12]
[1743709155968,1.12005,1786.3,1786.2,2.50758]
[1743709156162,1.12004,1786.4,1786.3,1.12001]
[1743709156363,1.12004,1786.4,1786.2,2.48738578]
[1743709156364,1.12005,1786.3,1786.2,2.50757]
[1743709156669,1.12005,1786.3,1786.2,3.05518519]
[1743709156859,3.2078,1786.5,1786.3,1.12003]
[1743709157168,1.12005,1786.4,1786.3,1.12005]
[1743709157662,1.12004,1786.4,1786.3,1.12]
[1743709158565,2.56701,1786.6,1786.5,1.11993]
[1743709158756,1.11975,1786.8,1786.5,3.927]
[1743709159056,2.79892,1787.1,1786.7,2.79951]
[1743709159057,1.4576,1787.1,1786.7,2.79951]
[1743709159257,3.2078,1787.3,1787.0,1.11961]
[1743709159460,3.2078,1787.3,1787.1,1.11955]
[1743709159661,1.11954,1787.2,1787.1,3.927]
[1743709160067,1.11954,1787.2,1787.1,5.04655]
[1743709161267,1.11944,1787.3,1787.2,1.11944]
[1743709161663,1.11949,1787.2,1787.1,6.5229]
[1743709162068,1.11946,1787.3,1787.2,1.11945]
[1743709163162,1.11941,1787.4,1787.3,1.1194]
[1743709163669,1.11947,1787.3,1787.2,1.11946]
[1743709164264,1.11941,1787.4,1787.3,1.11939]
[1743709164462,3.2078,1787.5,1787.1,8.6112]
[1743709164463,1.11932,1787.5,1787.4,1.11936]
[1743709164669,1.4576,1787.7,1787.4,3.925]
[1743709164868,1.1193,1787.5,1787.4,5.04432]
[1743709165574,2.57681,1787.7,1787.6,1.11924]
[1743709165767,1.11925,1787.6,1787.5,1.11925]
[1743709165966,2.57683,1787.7,1787.6,1.11924]
[1743709166365,2.79733,1788.1,1787.5,2.79826]
[1743709166561,1.11907,1787.9,1787.8,1.11909]
[1743709166768,1.11907,1787.9,1787.8,3.925]
[1743709167882,1.81817,1787.9,1787.8,3.925]
[1743709168874,2.79785,1787.8,1787.4,5.97]
[1743709169173,1.1193,1787.5,1787.4,5.97]
[1743709169374,1.1193,1787.5,1787.4,5.04336]
[1743709169565,1.11928,1787.6,1787.5,1.11927]
[1743709170570,1.83133,1787.7,1787.6,1.11924]
[1743709170775,4.32694,1787.8,1787.7,1.11918]
[1743709170974,4.32694,1787.8,1787.7,5.04218]
[1743709171164,3.53469,1788.0,1787.9,1.11905]
[1743709171165,0.7372,1788.0,1787.9,1.11905]
[1743709171372,1.119,1788.1,1788.0,1.11896]
[1743709171571,1.119,1788.1,1788.0,5.04196]
[1743709171882,1.119,1788.1,1788.0,3.923]
[1743709172077,2.5921,1788.1,1788.0,3.923]
[1743709172778,1.11912,1787.9,1787.6,3.55965]
[1743709173081,1.11912,1787.9,1787.8,1.11909]
[1743709173570,0.7372,1788.0,1787.7,3.923]
[1743709173571,1.11915,1787.8,1787.7,1.11912]
[1743709173771,1.11915,1787.8,1787.7,5.04112]
[1743709173772,1.84785,1787.8,1787.7,5.04112]
[1743709173977,1.84785,1787.8,1787.7,3.922]
[1743709174176,1.1193,1787.5,1787.4,1.5212]
[1743709174377,1.1193,1787.5,1787.4,5.04131]
[1743709174576,3.9365,1787.8,1787.4,6.72041]
[1743709174880,1.11925,1787.7,1787.6,1.11921]
[1743709175079,1.11924,1787.6,1787.5,1.11925]
[1743709176678,1.1193,1787.5,1787.4,5.04131]
[1743709178276,0.7287,1787.8,1787.4,3.922]
[1743709178476,1.84787,1787.8,1787.7,1.11918]
[1743709178675,1.84787,1787.8,1787.7,5.04118]
[1743709179071,1.84787,1787.8,1787.7,3.922]
[1743709179277,1.84787,1787.8,1787.7,5.04118]
[1743709179480,1.84787,1787.8,1787.7,3.922]
[1743709179880,1.84787,1787.8,1787.7,5.04118]
[1743709180274,6.74251,1788.0,1787.8,1.11911]
[1743709180275,1.11908,1787.9,1787.8,1.11911]
[1743709180474,1.11908,1787.9,1787.8,2.53541]
[1743709180783,1.11911,1787.8,1787.7,5.04112]
[1743709180978,1.11911,1787.8,1787.7,3.922]
[1743709181175,1.11911,1787.8,1787.7,5.04118]
[1743709181376,1.11911,1787.8,1787.7,45.84118]
[1743709181585,1.11911,1787.8,1787.7,3.922]
[1743709182075,1.11911,1787.8,1787.7,44.722]
[1743709182377,1.11911,1787.8,1787.7,3.922]
[1743709182584,1.11911,1787.8,1787.7,5.04118]
[1743709182882,1.11911,1787.8,1787.7,45.84118]
[1743709183279,1.11911,1787.8,1787.7,44.722]
[1743709183580,1.11911,1787.8,1787.7,3.922]
[1743709183784,1.11918,1787.7,1787.6,3.921]
[1743709184284,1.11918,1787.7,1787.6,44.721]
[1743709184780,1.11918,1787.7,1787.6,5.04024]
[1743709185284,1.11918,1787.7,1787.6,45.84024]
[1743709185581,1.11918,1787.7,1787.6,44.721]
[1743709186774,1.11918,1787.7,1787.6,45.84024]
[1743709186977,1.11918,1787.7,1787.6,45.81651759]
[1743709187174,1.11918,1787.7,1787.6,48.35210759]
[1743709187380,1.11918,1787.7,1787.6,46.93570759]
[1743709187581,1.11918,1787.7,1787.6,46.39000512]
[1743709187781,1.11918,1787.7,1787.6,46.39058779]
[1743709187982,1.11918,1787.7,1787.6,46.39063018]
[1743709188185,1.11918,1787.7,1787.6,45.81845581]
[1743709188574,1.11918,1787.7,1787.6,46.93769581]
[1743709189980,1.11918,1787.7,1787.6,45.81845581]
[1743709190485,1.11918,1787.7,1787.6,46.93769581]
[1743709191084,1.11918,1787.7,1787.6,47.82052145]
[1743709191683,1.11918,1787.7,1787.6,49.23452145]
[1743709192085,2.61178,1787.7,1787.6,49.23452145]
[1743709192485,2.61178,1787.7,1787.6,49.23545571]
[1743709192990,1.4926,1787.7,1787.6,49.23545571]
[1743709193190,2.61178,1787.7,1787.6,49.23545571]
[1743709194584,2.61178,1787.7,1787.6,49.23920634]
[1743709194786,2.61178,1787.7,1787.6,46.70596634]
[1743709194982,2.61178,1787.7,1787.6,5.90596634]
[1743709195382,2.61178,1787.7,1787.6,7.02520634]
[1743709195987,2.61178,1787.7,1787.6,8.54390634]
[1743709198283,2.61178,1787.7,1787.6,8.54431919]
[1743709199387,2.61178,1787.7,1787.6,5.90637919]
[1743709199790,2.61178,1787.7,1787.6,5.02208475]
[1743709199988,5.81958,1787.7,1787.6,1.10113029]
[1743709200183,8.31958,1787.7,1787.6,1.10113029]
[1743709200484,5.81958,1787.7,1787.6,1.10113029]
[1743709201389,5.81958,1787.7,1787.6,1.10131776]
[1743709203189,1.11916,1787.8,1787.6,2.22055776]
[1743709203397,1.11916,1787.8,1787.7,1.10131776]
[1743709203584,2.62366,1787.8,1787.7,5.02031776]
[1743709203787,2.62366,1787.8,1787.7,6.13949776]
[1743709203992,2.62366,1787.8,1787.7,5.02031776]
[1743709204693,2.62366,1787.8,1787.4,45.83835]
[1743709204694,5.59611,1787.7,1787.4,45.83835]
[1743709204887,1.86414,1787.6,1787.5,1.98658902]
[1743709205082,1.86414,1787.6,1787.5,1.10182127]
[1743709205286,1.86414,1787.6,1787.5,1.10177976]
[1743709206791,1.86414,1787.6,1787.5,2.22107976]
[1743709207100,6.00516,1788.1,1787.6,1.11924]
[1743709207291,1.11897,1788.1,1788.0,1.11899]
[1743709207601,1.11883,1788.3,1788.2,1.11879]
[1743709207796,1.11883,1788.3,1788.2,1.1014938]
[1743709208186,1.11883,1788.3,1788.2,0.54873336]
[1743709208988,1.11886,1788.2,1788.1,1.4004]
[1743709209188,1.11886,1788.2,1788.1,2.21940544]
[1743709209388,2.63314,1788.3,1788.2,1.11886]
[1743709209590,2.63314,1788.3,1788.2,3.17534222]
[1743709209791,2.63314,1788.3,1788.2,2.05648222]
[1743709210194,2.63314,1788.3,1788.2,1.5083]
[1743709210592,1.11893,1788.1,1788.0,8.97994]
[1743709210797,1.11893,1788.1,1788.0,11.58763736]
[1743709211004,1.11893,1788.1,1788.0,11.58765246]
[1743709211297,1.11893,1788.1,1788.0,8.37985246]
[1743709211497,3.2078,1788.1,1787.7,5.97]
[1743709211693,1.11905,1787.9,1787.8,0.547507]
[1743709211891,1.1193,1787.5,1787.4,8.24511]
[1743709212198,1.11928,1787.6,1787.5,1.11923]
[1743709212388,1.11928,1787.6,1787.5,2.21848161]
[1743709212590,1.11928,1787.6,1787.5,3.61168161]
[1743709212901,1.11922,1787.7,1787.6,1.11919]
[1743709213103,1.11922,1787.7,1787.6,7.52968814]
[1743709213302,1.11922,1787.7,1787.6,4.46559139]
[1743709213493,1.11922,1787.7,1787.6,3.918]
[1743709214794,1.4607,1787.8,1787.6,3.918]
[1743709214993,1.11918,1787.7,1787.6,3.918]
[1743709215402,1.1193,1787.5,1787.4,40.8]
[1743709215701,1.11936,1787.4,1787.3,0.00840784]
[1743709215894,2.64546,1787.4,1787.3,0.00840784]
[1743709219296,9.06346,1787.4,1787.3,7.84e-06]
[1743709219498,9.16093793,1787.4,1787.3,7.84e-06]
[1743709220701,9.1609497,1787.4,1787.3,7.84e-06]
[1743709221094,9.06346,1787.4,1787.3,7.84e-06]
[1743709221301,9.16095055,1787.4,1787.3,7.84e-06]
[1743709222501,9.16094264,1787.4,1787.3,7.84e-06]
[1743709223301,2.74294264,1787.4,1787.3,7.84e-06]
[1743709223603,3.21620784,1787.5,1787.4,1.11936]
[1743709223604,0.00840784,1787.5,1787.4,1.11936]
[1743709223806,0.00840784,1787.5,1787.4,6.56416]
[1743709224006,0.00840784,1787.5,1787.4,8.00216]
[1743709224203,0.00840784,1787.5,1787.4,8.54804593]
[1743709224402,0.00840784,1787.5,1787.4,52.55584593]
[1743709224614,0.00840784,1787.5,1787.4,52.00996]
[1743709225303,1.12770784,1787.5,1787.4,52.00996]
[1743709225496,0.00840784,1787.5,1787.4,52.00996]
[1743709226404,1.12770784,1787.5,1787.4,52.00996]
[1743709226707,1.12770784,1787.5,1787.4,48.80216]
[1743709226895,1.11936,1787.4,1787.3,3.91900784]
[1743709227104,2.58406,1787.4,1787.3,3.91900784]
[1743709227412,0.00840784,1787.5,1787.4,1.11936]
[1743709227809,3.2078,1788.0,1787.6,2.79806]
[1743709228109,1.11903,1788.0,1787.9,1.11903]
[1743709228309,1.11899,1788.0,1787.9,1.11903]
[1743709228707,1.11904,1788.0,1787.9,1.11905]
[1743709229007,1.11904,1788.0,1787.9,1.3944]
[1743709229008,1.11899,1788.0,1787.9,1.3944]
[1743709230408,1.11899,1788.0,1787.9,2.51345]
[1743709230707,3.2078,1788.2,1788.1,1.11893]
[1743709230904,1.11881,1788.3,1788.2,1.11882]
[1743709231108,1.11881,1788.3,1788.2,2.63472]
[1743709231305,1.11881,1788.3,1788.2,1.5159]
[1743709231909,1.11881,1788.3,1788.1,3.92640784]
[1743709231910,1.11886,1788.2,1788.1,3.92640784]
[1743709232111,2.59606,1788.2,1788.1,3.92640784]
[1743709232700,2.59606,1788.2,1788.1,5.04533784]
[1743709232903,2.59606,1788.2,1788.1,3.92640784]
[1743709233312,2.59606,1788.2,1788.1,5.04533784]
[1743709233700,1.11886,1788.2,1788.1,5.04533784]
[1743709233910,1.11885,1788.3,1788.1,3.92640784]
[1743709234103,1.11885,1788.3,1788.2,1.5084]
[1743709234805,1.11885,1788.3,1788.2,2.62726]
[1743709235010,1.11885,1788.3,1788.2,1.5084]
[1743709236103,1.11886,1788.2,1788.1,0.00840784]
[1743709236307,2.59456,1788.2,1788.1,0.00840784]
[1743709236716,5.80236,1788.2,1788.1,0.00840784]
[1743709237013,6.56636,1788.2,1788.1,0.00840784]
[1743709237409,9.06636,1788.2,1788.1,0.00840784]
[1743709238113,6.56636,1788.2,1788.1,0.00840784]
[1743709238717,9.06636,1788.2,1788.1,0.00840784]
[1743709240314,6.56636,1788.2,1788.1,0.00840784]
[1743709242127,2.59456,1788.2,1788.1,1.43450784]
[1743709242333,2.59456,1788.2,1788.1,5.35150784]
[1743709243028,5.80236,1788.2,1788.1,5.35150784]
[1743709243330,5.80236,1788.2,1788.1,0.00840784]
[1743709243519,6.55106,1788.2,1788.1,0.00840784]
[1743709244131,9.05106,1788.2,1788.1,0.00840784]
[1743709244332,9.05106,1788.2,1787.6,8.52609]
[1743709244333,8.02985093,1788.2,1787.3,40.8]
[1743709244524,6.00629,1787.4,1787.0,4.6629]
[1743709244724,1.11955,1787.1,1787.0,3.916]
[1743709245128,1.11961,1787.0,1786.9,43.35654]
[1743709245328,4.32741,1787.0,1786.9,42.2369]
[1743709246028,4.32741,1787.0,1786.9,1.4369]
[1743709248234,1.53790784,1787.1,1787.0,1.11961]
[1743709248839,0.00840784,1787.1,1787.0,1.11961]
[1743709249133,1.11961,1787.0,1786.9,2.55652]
[1743709249539,1.11961,1787.0,1786.9,43.35652]
[1743709249746,4.33580784,1787.1,1787.0,1.11961]
[1743709249936,4.33580784,1787.1,1787.0,2.63391]
[1743709250138,1.12800784,1787.1,1787.0,2.63391]
[1743709250644,0.00840784,1787.1,1787.0,2.63391]
[1743709250836,1.12795784,1787.1,1787.0,1.5143]
[1743709251136,0.00840784,1787.1,1787.0,2.63391]
[1743709251730,1.12795784,1787.1,1787.0,2.63391]
[1743709252740,2.62255784,1787.1,1787.0,43.43391]
[1743709252942,2.62255784,1787.1,1787.0,40.8]
[1743709253140,1.11961,1787.0,1786.9,3.917]
[1743709253345,2.61421,1787.0,1786.9,3.917]
[1743709253538,2.61421,1787.0,1786.9,44.717]
[1743709253843,2.61421,1787.0,1786.9,45.83667]
[1743709254344,2.61421,1787.0,1786.9,45.83668]
[1743709254842,2.61421,1787.0,1786.9,5.03668]
[1743709255250,1.12798784,1787.1,1787.0,1.11961]
[1743709255546,1.11961,1787.0,1786.9,47.25893]
[1743709255742,2.56151,1787.0,1786.9,47.25893]
[1743709256745,1.4419,1787.0,1786.9,47.25893]
[1743709257145,2.56151,1787.0,1786.9,47.25893]
[1743709259346,0.00840784,1787.1,1787.0,1.11961]
[1743709259545,0.00840784,1787.1,1787.0,3.36141]
[1743709259853,1.12795784,1787.1,1787.0,2.60851]
[1743709260049,1.11961,1787.0,1786.9,5.03663]
[1743709260237,1.11961,1787.0,1786.9,6.52553]
[1743709260649,1.11961,1787.0,1786.9,3.917]
[1743709261248,1.11968,1786.9,1786.8,5.04512784]
[1743709261952,1.11968,1786.9,1786.8,6.54592784]
[1743709262244,2.61168,1787.0,1786.9,1.11968]
[1743709262446,0.70430784,1787.1,1786.9,1.11968]
[1743709262447,0.00840784,1787.1,1787.0,1.11961]
[1743709262643,0.00840784,1787.1,1787.0,41.91961]
[1743709263149,0.00840784,1787.1,1787.0,42.63721]
[1743709263640,0.00840784,1787.1,1787.0,40.8]
[1743709263641,1.12795784,1787.1,1787.0,40.8]
[1743709263951,1.12795784,1787.1,1786.9,2.62043]
[1743709263952,1.11961,1787.0,1786.9,2.62043]
[1743709264138,1.11968,1786.9,1786.8,0.00840784]
[1743709264338,6.46208,1786.9,1786.8,0.00840784]
[1743709265749,5.76818,1786.9,1786.8,0.00840784]
[1743709265950,4.32748,1786.9,1786.8,1.12814784]
[1743709266754,3.2078,1786.9,1786.8,1.12814784]
[1743709267047,1.11968,1786.9,1786.8,1.12811784]
[1743709267351,1.11968,1786.9,1786.8,1.12814784]
[1743709267855,1.11968,1786.9,1786.8,0.00840784]
[1743709268352,1.11968,1786.9,1786.8,1.12814784]
[1743709268550,1.11968,1786.9,1786.8,1.51790784]
[1743709268755,2.54078,1786.9,1786.8,1.51790784]
[1743709268948,2.54078,1786.9,1786.8,0.00840784]
[1743709269347,3.28878,1786.9,1786.8,0.00840784]
[1743709270053,2.54078,1786.9,1786.8,1.12814784]
[1743709270255,0.00840784,1787.1,1787.0,1.11961]
[1743709270644,1.11939,1787.4,1787.3,1.11943]
[1743709270861,1.11933,1787.5,1787.4,1.1193]
[1743709271252,1.11936,1787.4,1787.3,2.59938]
[1743709271455,1.11943,1787.3,1787.2,3.917]
[1743709271654,1.11949,1787.2,1787.1,5.97]
[1743709272050,1.11949,1787.2,1787.1,7.08955]
[1743709272357,2.58259,1787.3,1787.2,1.11949]
[1743709272550,2.58259,1787.3,1787.2,2.59949]
[1743709272755,1.11941,1787.4,1787.3,1.11938]
[1743709272957,1.11941,1787.4,1787.3,1.5255]
[1743709273158,1.11943,1787.3,1787.2,3.917]
[1743709273360,1.11949,1787.2,1787.1,8.615]
[1743709273554,1.11949,1787.2,1787.1,5.97]
[1743709273756,1.81199,1787.2,1787.1,5.97]
[1743709274060,1.11968,1786.9,1786.8,0.00840784]
[1743709274361,4.32748,1786.9,1786.8,0.00840784]
[1743709275156,1.11968,1786.9,1786.8,0.00840784]
[1743709275466,1.11968,1786.9,1786.8,1.67613159]
[1743709275962,1.11968,1786.9,1786.8,0.55639159]
[1743709276854,1.11968,1786.9,1786.8,0.55637977]
[1743709277057,4.7059,1787.1,1787.0,1.11961]
[1743709277260,5.82549,1787.1,1787.0,5.58451501]
[1743709277857,4.7059,1787.1,1787.0,5.58451501]
[1743709278556,9.1758,1787.5,1787.3,1.11941]
[1743709278762,1.46,1787.4,1787.3,5.03641]
[1743709278964,0.7144,1787.5,1787.4,1.11936]
[1743709279158,1.1193,1787.5,1787.4,2.584]
[1743709279363,1.4325,1787.5,1787.4,3.68247873]
[1743709279561,5.04133,1787.8,1787.7,1.11918]
[1743709279760,4.32682,1788.0,1787.9,1.11905]
[1743709280563,4.32682,1788.0,1787.8,0.00840784]
[1743709280564,1.11905,1787.9,1787.8,0.00840784]
[1743709280763,2.55155,1787.9,1787.8,0.00840784]
[1743709283264,1.1193,1787.5,1787.4,3.916]
[1743709283464,1.11936,1787.4,1787.3,1.11942]
[1743709283668,1.11945,1787.3,1787.2,1.11944]
[1743709283871,2.61493,1787.4,1787.3,1.11943]
[1743709284072,5.05458,1787.6,1787.2,6.00645]
[1743709284263,2.223,1787.6,1787.5,1.1193]
[1743709284475,1.50390784,1787.6,1787.5,1.1193]
[1743709284766,3.2078,1788.3,1787.9,2.79764]
[1743709284972,4.09473,1788.5,1788.1,6.00512]
[1743709285173,3.2078,1788.6,1788.5,1.11868]
[1743709285467,4.32641,1788.6,1788.5,3.916]
[1743709285963,4.32641,1788.6,1788.3,7.08877]
[1743709285964,1.11868,1788.5,1788.4,0.00840784]
[1743709286163,3.34288,1788.5,1788.4,0.00840784]
[1743709286372,4.05528,1788.5,1788.4,0.00840784]
[1743709287867,6.55528,1788.5,1788.4,0.00840784]
[1743709288075,1.11899,1788.0,1787.9,5.80173]
[1743709288273,1.11899,1788.0,1787.9,9.71673]
[1743709288466,1.11899,1788.0,1787.9,44.715]
[1743709288771,1.11899,1788.0,1787.9,3.915]
[1743709288970,2.61799,1788.0,1787.9,3.915]
[1743709289370,1.11905,1787.9,1787.8,0.00840784]
[1743709289566,5.82585,1787.9,1787.8,0.00840784]
[1743709290764,8.32585,1787.9,1787.8,0.00840784]
[1743709291075,1.11955,1787.2,1787.1,3.915]
[1743709291279,1.11955,1787.2,1787.1,1.66433477]
[1743709291568,1.11955,1787.1,1787.0,6.42027]
[1743709291766,1.11953,1787.2,1787.1,1.11953]
[1743709291967,4.32727,1787.3,1787.2,1.11949]
[1743709292170,1.11947,1787.3,1787.2,1.11949]
[1743709292373,1.11951,1787.2,1787.1,1.1195]
[1743709292569,1.11955,1787.1,1787.0,1.39410784]
[1743709292776,2.61085,1787.1,1787.0,0.00840784]
[1743709293079,3.2078,1787.7,1787.2,1.11949]
[1743709293281,1.11936,1787.4,1787.3,3.915]
[1743709293578,1.11936,1787.4,1787.2,5.97]
[1743709293579,1.11943,1787.3,1787.2,5.97]
[1743709293782,1.11949,1787.2,1787.1,5.03455]
[1743709293972,1.11949,1787.2,1787.1,45.83455]
[1743709294979,2.51399,1787.2,1787.1,45.83455]
[1743709295275,2.51399,1787.2,1787.1,41.91955]
[1743709295878,2.51399,1787.2,1787.1,40.8]
[1743709296779,1.11955,1787.1,1787.0,0.00840784]
[1743709296978,1.11955,1787.1,1786.2,3.2078]
[1743709296979,2.79904,1787.0,1786.2,3.2078]
[1743709297174,1.11998,1786.5,1786.4,1.11998]
[1743709297380,6.00733,1786.7,1786.4,1.11998]
[1743709297569,1.11999,1786.4,1786.3,41.92003]
[1743709297772,1.11999,1786.4,1786.3,40.8]
[1743709297973,1.11999,1786.4,1786.3,41.92005]
[1743709298180,1.11999,1786.4,1786.3,40.8]
[1743709298382,1.11999,1786.4,1786.3,41.92005]
[1743709298580,2.61609,1786.4,1786.3,40.8]
[1743709298780,2.61609,1786.4,1786.3,41.92005]
[1743709299374,1.4961,1786.4,1786.3,41.92005]
[1743709300080,1.12835784,1786.5,1786.4,1.11999]
[1743709300375,1.12835784,1786.5,1786.4,2.61669]
[1743709300583,1.12835784,1786.5,1786.4,1.4967]
[1743709301780,1.11999,1786.4,1786.3,41.92004]
[1743709301980,1.11999,1786.4,1786.3,40.8]
[1743709301981,2.51149,1786.4,1786.3,40.8]
[1743709302191,5.71929,1786.4,1786.3,40.8]
[1743709302995,1.12005,1786.3,1786.2,1.12850784]
[1743709303186,2.50145,1786.3,1786.2,1.12850784]
[1743709303985,1.3814,1786.3,1786.2,1.12850784]
[1743709304190,1.38980784,1786.5,1786.4,1.11999]
[1743709304392,0.00840784,1786.5,1786.4,1.11999]
[1743709304590,0.00840784,1786.5,1786.4,8.34519]
[1743709304796,0.00840784,1786.5,1786.4,49.88769]
[1743709305594,0.00840784,1786.5,1786.4,47.38769]
[1743709306396,1.12833784,1786.5,1786.4,46.64519]
[1743709306800,0.00840784,1786.5,1786.4,46.64519]
[1743709307002,1.50020784,1786.5,1786.4,46.64519]
[1743709307498,3.2078,1787.4,1786.8,2.79933]
[1743709307701,1.4918,1787.5,1787.4,1.11936]
[1743709307890,1.4918,1787.5,1787.4,6.43116]
[1743709308305,1.11915,1787.8,1787.4,8.11017]
[1743709308598,1.11919,1787.7,1787.6,1.11918]
[1743709308903,1.11927,1787.6,1787.5,1.11927]
[1743709309104,1.12756784,1787.8,1787.7,1.11918]
[1743709309405,2.52376784,1787.8,1787.7,1.11918]
[1743709309601,1.11918,1787.7,1787.6,1.11919]
[1743709309802,1.3962,1787.7,1787.6,1.11919]
[1743709310903,2.51538,1787.7,1787.6,1.11919]
[1743709311804,1.11926,1787.6,1787.5,1.11925]
[1743709312006,1.11932,1787.5,1787.4,1.11931]
[1743709312195,4.604,1787.7,1787.6,1.11924]
[1743709312406,1.3962,1787.7,1787.6,1.11924]
[1743709312704,1.3962,1787.7,1787.5,2.64625]
[1743709312902,1.1193,1787.5,1787.4,5.03532]
[1743709313206,1.1193,1787.5,1787.4,3.916]
[1743709313904,2.6211,1787.5,1787.4,3.916]
[1743709314407,1.11936,1787.4,1787.3,3.92440784]
[1743709314602,2.62116,1787.4,1787.3,3.92440784]
[1743709314906,2.62116,1787.4,1787.3,0.00840784]
[1743709315204,2.62116,1787.4,1787.3,1.12783784]
[1743709315406,2.62116,1787.4,1787.3,0.00840784]
[1743709317705,5.12116,1787.4,1787.3,0.00840784]
[1743709318601,2.62116,1787.4,1787.3,1.12783784]
[1743709318797,1.5018,1787.4,1787.3,1.12783784]
[1743709319009,1.83046,1787.6,1787.5,1.1193]
[1743709319503,1.83046,1787.6,1787.4,1.5274]
[1743709319707,1.11936,1787.4,1787.3,8.25158784]
[1743709320009,1.11936,1787.4,1787.3,9.77898784]
[1743709320604,1.4711,1787.5,1787.3,9.77898784]
[1743709320605,2.59045,1787.5,1787.4,1.11936]
[1743709320810,2.59045,1787.5,1787.4,2.64676]
[1743709321804,1.11936,1787.4,1787.3,7.13220784]
[1743709322004,1.11936,1787.4,1787.3,8.25157784]
[1743709322203,1.11936,1787.4,1787.3,3.92440784]
[1743709322413,4.32716,1787.4,1787.3,0.00840784]
[1743709322619,1.1198,1786.8,1786.7,1.11977]
[1743709322814,1.1198,1786.7,1786.5,3.916]
[1743709322999,1.11987,1786.7,1786.6,1.11983]
[1743709323315,1.11981,1786.8,1786.7,1.11977]
[1743709323503,0.7264,1787.0,1786.7,6.0072]
[1743709323702,0.00840784,1786.9,1786.6,0.00840784]
[1743709324010,1.1198,1786.7,1786.6,0.00840784]
[1743709325611,1.1198,1786.7,1786.6,1.12827784]
[1743709326112,1.1198,1786.8,1786.7,1.1198]
[1743709326415,1.1198,1786.7,1786.6,1.12821784]
[1743709326710,4.3276,1786.7,1786.6,0.00840784]
[1743709328012,4.3276,1786.7,1786.6,1.12827784]
[1743709328200,2.80760784,1786.9,1786.6,0.00840784]
[1743709328201,3.21620784,1786.9,1786.6,0.00840784]
[1743709328409,3.21620784,1786.9,1786.6,1.38970784]
[1743709328606,0.00840784,1786.9,1786.8,1.11974]
[1743709328800,3.2078,1787.2,1787.1,1.11955]
[1743709329313,3.2078,1787.2,1787.1,5.03555]
[1743709329721,1.11968,1786.9,1786.8,7.0897]
[1743709329908,1.11968,1786.9,1786.8,5.97]
[1743709330107,1.11967,1787.0,1786.9,1.11964]
[1743709330307,1.11967,1787.0,1786.9,2.50094]
[1743709330508,1.11961,1787.1,1787.0,1.11957]
[1743709330708,1.11961,1787.1,1787.0,3.916]
[1743709331105,1.11968,1786.9,1786.8,14.2135]
[1743709331611,1.11966,1787.0,1786.9,1.11962]
[1743709331817,1.11966,1787.0,1786.9,2.54002]
[1743709332314,0.00840784,1787.3,1787.2,1.11949]
[1743709332516,0.00840784,1787.3,1787.2,8.24429]
[1743709332818,1.12783784,1787.3,1787.2,3.917]
[1743709333422,1.88743784,1787.3,1787.2,3.917]
[1743709334115,1.12783784,1787.3,1787.2,3.917]
[1743709334512,1.12783784,1787.3,1787.2,5.03649]
[1743709334712,1.12783784,1787.3,1787.2,3.917]
[1743709335017,0.00840784,1787.3,1787.2,5.03649]
[1743709335215,1.12783784,1787.3,1787.2,5.03649]
[1743709335516,1.12783784,1787.3,1787.2,6.44449]
[1743709336220,1.12783784,1787.3,1787.2,3.917]
[1743709336719,1.12783784,1787.3,1787.2,5.03649]
[1743709336926,0.00840784,1787.3,1787.2,5.03649]
[1743709337122,0.00840784,1787.3,1787.2,6.49399]
[1743709337321,0.00840784,1787.3,1787.2,7.04029605]
[1743709337525,0.00840784,1787.3,1787.2,7.04034885]
[1743709337711,0.00840784,1787.3,1787.2,10.24814885]
[1743709338215,0.00840784,1787.3,1787.2,10.7975383]
[1743709339023,6.00509,1788.2,1787.2,19.02703019]
[1743709339324,1.11906,1788.0,1787.9,1.11902]
[1743709339520,1.11905,1787.9,1787.8,43.37656]
[1743709339922,1.11905,1787.9,1787.8,40.8]
[1743709340124,1.11911,1787.8,1787.7,3.921]
[1743709340422,1.11911,1787.8,1787.7,3.92940784]
[1743709340723,4.32691,1787.8,1787.7,0.00840784]
[1743709340922,2.79829,1787.5,1787.2,0.54930803]
[1743709341118,1.11949,1787.2,1787.1,3.2078]
[1743709341321,1.11961,1787.0,1786.9,3.922]
[1743709341625,1.11968,1786.9,1786.8,2.54419]
[1743709341831,1.11968,1786.9,1786.8,3.0907132]
[1743709342123,1.11974,1786.8,1786.7,1.12818784]
[1743709342317,2.53294,1786.8,1786.7,0.00840784]
[1743709342522,5.74074,1786.8,1786.7,0.00840784]
[1743709343620,8.24074,1786.8,1786.7,0.00840784]
[1743709346727,4.621,1786.8,1786.7,1.12820784]
[1743709347531,3.2078,1786.8,1786.7,1.12820784]
[1743709347834,1.3975,1786.8,1786.7,1.12820784]
[1743709348131,2.51724,1786.8,1786.7,42.27620784]
[1743709348433,2.51724,1786.8,1786.7,43.39600784]
[1743709348629,0.6986,1786.9,1786.8,1.11974]
[1743709348829,0.00840784,1787.0,1786.9,1.11968]
[1743709349024,0.00840784,1787.0,1786.9,2.52238]
[1743709349526,1.51720784,1787.0,1786.9,43.32238]
[1743709350225,1.51720784,1787.0,1786.9,46.53018]
[1743709350534,1.4124,1787.5,1787.4,1.11936]
[1743709350730,1.11939,1787.4,1787.3,1.11937]
[1743709351332,1.11943,1787.3,1787.2,3.928]
[1743709352033,1.11949,1787.2,1787.1,1.11952]
[1743709353428,1.11955,1787.1,1787.0,6.47716]
[1743709353624,4.684,1787.3,1787.1,1.11951]
[1743709353837,4.684,1787.3,1787.2,1.11949]
[1743709354131,1.12778784,1787.4,1787.3,1.11943]
[1743709354329,1.11954,1787.2,1787.1,1.11952]